fUSD/lending_fUSD_20250530
["ID","MTS","AMOUNT","RATE_DAILY","PERIOD"]
[363154068,1748603446870,-868.33,0.00021917,2]
[363154070,1748603446879,-420.0,0.00021917,2]
[363154072,1748603446889,-420.0,0.00021917,2]
[363154074,1748603446898,-794.91,0.00021917,2]
[363154076,1748603446907,-852.26,0.00021917,2]
[363154078,1748603446917,-420.0,0.00021917,2]
[363154080,1748603446927,-388.97871371,0.00021917,2]
[363154082,1748603446936,-420.0,0.00021917,2]
[363154084,1748603446945,-731.99,0.00021917,2]
[363154086,1748603446955,-857.45,0.00021917,2]
[363154088,1748603446964,-503.71292177,0.00021917,2]
[363154090,1748603446974,-420.0,0.00021917,2]
[363154092,1748603446983,-420.0,0.00021917,2]
[363154095,1748603447002,-1661.63,0.00021917,2]
[363154097,1748603447013,-420.0,0.00021917,2]
[363154099,1748603447023,-421.66,0.00021917,2]
[363154100,1748603447032,-422.67486705,0.00021917,2]
[363154102,1748603447041,-420.0,0.00021917,2]
[363154104,1748603447050,-1418.78,0.00021917,2]
[363154106,1748603447060,-420.0,0.00021917,2]
[363154108,1748603447069,-420.0,0.00021917,2]
[363154110,1748603447079,-471.01,0.00021917,2]
[363154112,1748603447088,-929.58,0.00021917,2]
[363154114,1748603447099,-584.83,0.00021917,2]
[363154116,1748603447108,-420.0,0.00021917,2]
[363154118,1748603447118,-1247.14,0.00021917,2]
[363154120,1748603447127,-504.7075415,0.00021917,2]
[363154122,1748603447136,-420.0,0.00021917,2]
[363154124,1748603447146,-1980.11,0.00021917,2]
[363154126,1748603447155,-420.0,0.00021917,2]
[363154128,1748603447165,-160.0,0.00021917,2]
[363154130,1748603447175,-626.26,0.00021917,2]
[363154132,1748603447184,-420.0,0.00021917,2]
[363154134,1748603447194,-420.0,0.00021917,2]
[363154136,1748603447204,-420.0,0.00021917,2]
[363154138,1748603447213,-503.14248089,0.00021917,2]
[363154141,1748603447223,-420.0,0.00021917,2]
[363154142,1748603447233,-544.87,0.00021917,2]
[363154144,1748603447243,-165.33875953,0.00021917,2]
[363154147,1748603447252,-420.0,0.00021917,2]
[363154148,1748603447262,-420.0,0.00021917,2]
[363154150,1748603447272,-420.0,0.00021917,2]
[363154152,1748603447281,-420.0,0.00021917,2]
[363154154,1748603447290,-503.70599313,0.00021917,2]
[363154156,1748603447299,-1188.87,0.00021917,2]
[363154158,1748603447309,-467.8,0.00021917,2]
[363154160,1748603447318,-420.0,0.00021917,2]
[363154162,1748603447328,-1129.7,0.00021917,2]
[363154165,1748603447338,-420.0,0.00021917,2]
[363154167,1748603447350,-1362.92,0.00021917,2]
[363154169,1748603447360,-420.0,0.00021917,2]
[363154171,1748603447369,-151.0,0.00021917,2]
[363154173,1748603447379,-151.0,0.00021917,2]
[363154175,1748603447388,-151.655432,0.00021917,2]
[363154177,1748603447398,-420.0,0.00021917,2]
[363154179,1748603447407,-420.0,0.00021917,2]
[363154181,1748603447417,-420.0,0.00021917,2]
[363154183,1748603447426,-507.12,0.00021917,2]
[363154185,1748603447435,-420.0,0.00021917,2]
[363154187,1748603447450,-628.69,0.00021917,2]
[363154189,1748603447459,-506.67937776,0.00021917,2]
[363154191,1748603447469,-420.0,0.00021917,2]
[363154193,1748603447477,-616.07,0.00021917,2]
[363154195,1748603447488,-420.0,0.00021917,2]
[363154197,1748603447497,-420.0,0.00021917,2]
[363154199,1748603447506,-560.56913432,0.00021917,2]
[363154201,1748603447516,-691.42,0.00021917,2]
[363154203,1748603447526,-420.0,0.00021917,2]
[363154205,1748603447535,-420.0,0.00021917,2]
[363154207,1748603447545,-420.0,0.00021917,2]
[363154209,1748603447555,-420.0,0.00021917,2]
[363154211,1748603447564,-739.92,0.00021917,2]
[363154213,1748603447574,-420.0,0.00021917,2]
[363154215,1748603447583,-420.0,0.00021917,2]
[363154217,1748603447594,-424.12,0.00021917,2]
[363154219,1748603447603,-420.0,0.00021917,2]
[363154221,1748603447612,-420.0,0.00021917,2]
[363154223,1748603447621,-420.0,0.00021917,2]
[363154225,1748603447631,-420.0,0.00021917,2]
[363154227,1748603447641,-840.59,0.00021917,2]
[363154229,1748603447650,-420.0,0.00021917,2]
[363154231,1748603447660,-771.7,0.00021917,2]
[363154233,1748603447669,-256.45,0.00021917,2]
[363154235,1748603447683,-170.3644901,0.00021917,2]
[363154238,1748603447693,-420.0,0.00021917,2]
[363154240,1748603447703,-1015.42,0.00021917,2]
[363154242,1748603447713,-420.0,0.00021917,2]
[363154244,1748603447722,-500.0,0.00021917,2]
[363154246,1748603447732,-1334.27,0.00021917,2]
[363154248,1748603447742,-420.0,0.00021917,2]
[363154250,1748603447751,-420.0,0.00021917,2]
[363154252,1748603447761,-1205.13,0.00021917,2]
[363154254,1748603447770,-420.0,0.00021917,2]
[363154256,1748603447779,-420.0,0.00021917,2]
[363154258,1748603447789,-420.0,0.00021917,2]
[363154260,1748603447800,-420.0,0.00021917,2]
[363154261,1748603447810,-420.0,0.00021917,2]
[363154262,1748603447822,-500.0,0.00021917,2]
[363154263,1748603447832,-420.0,0.00021917,2]
[363154264,1748603447843,-420.0,0.00021917,2]
[363154265,1748603447854,-420.0,0.00021917,2]
[363154266,1748603447864,-420.0,0.00021917,2]
[363154267,1748603447874,-420.0,0.00021917,2]
[363154268,1748603447884,-420.0,0.00021917,2]
[363154269,1748603447894,-421.21367918,0.00021917,2]
[363154270,1748603447904,-1292.74,0.00021917,2]
[363154272,1748603447914,-420.0,0.00021917,2]
[363154273,1748603447923,-151.0,0.00021917,2]
[363154275,1748603447933,-151.0,0.00021917,2]
[363154277,1748603447943,-254.89491866,0.00021917,2]
[363154279,1748603447953,-1260.37,0.00021917,2]
[363154281,1748603447963,-420.0,0.00021917,2]
[363154284,1748603447973,-151.0,0.00021917,2]
[363154286,1748603447983,-151.0,0.00021917,2]
[363154288,1748603447993,-700.71,0.00021917,2]
[363154290,1748603448003,-707.64,0.00021917,2]
[363154292,1748603448012,-420.0,0.00021917,2]
[363154294,1748603448022,-211.22843,0.00021917,2]
[363154296,1748603448032,-211.22843,0.00021917,2]
[363154298,1748603448042,-500.0,0.00021917,2]
[363154300,1748603448052,-535.73,0.00021917,2]
[363154302,1748603448062,-211.22843,0.00021917,2]
[363154304,1748603448089,-1324.65,0.00021917,2]
[363154306,1748603448101,-420.0,0.00021917,2]
[363154308,1748603448111,-211.22843,0.00021917,2]
[363154311,1748603448121,-420.0,0.00021917,2]
[363154313,1748603448130,-1102.9,0.00021917,2]
[363154315,1748603448140,-211.22843,0.00021917,2]
[363154317,1748603448151,-420.0,0.00021917,2]
[363154319,1748603448160,-211.22843,0.00021917,2]
[363154321,1748603448173,-420.0,0.00021917,2]
[363154323,1748603448182,-211.22843,0.00021917,2]
[363154325,1748603448191,-211.22843,0.00021917,2]
[363154327,1748603448201,-1074.25,0.00021917,2]
[363154329,1748603448211,-420.0,0.00021917,2]
[363154331,1748603448220,-420.0,0.00021917,2]
[363154333,1748603448230,-420.0,0.00021917,2]
[363154335,1748603448240,-1426.93,0.00021917,2]
[363154337,1748603448249,-691.44,0.00021917,2]
[363154339,1748603448259,-420.0,0.00021917,2]
[363154341,1748603448268,-420.0,0.00021917,2]
[363154343,1748603448278,-420.0,0.00021917,2]
[363154345,1748603448288,-503.80554401,0.00021917,2]
[363154347,1748603448298,-1186.28,0.00021917,2]
[363154349,1748603448307,-420.0,0.00021917,2]
[363154351,1748603448317,-420.0,0.00021917,2]
[363154353,1748603448327,-151.0,0.00021917,2]
[363154355,1748603448337,-616.38,0.00021917,2]
[363154357,1748603448349,-151.0,0.00021917,2]
[363154359,1748603448359,-151.0,0.00021917,2]
[363154361,1748603448369,-420.0,0.00021917,2]
[363154363,1748603448379,-420.0,0.00021917,2]
[363154365,1748603448390,-420.0,0.00021917,2]
[363154367,1748603448400,-420.0,0.00021917,2]
[363154369,1748603448410,-740.92,0.00021917,2]
[363154371,1748603448420,-420.0,0.00021917,2]
[363154374,1748603448431,-502.51,0.00021917,2]
[363154376,1748603448444,-516.79,0.00021917,2]
[363154378,1748603448454,-500.0,0.00021917,2]
[363154380,1748603448465,-420.0,0.00021917,2]
[363154382,1748603448475,-448.5,0.00021917,2]
[363154384,1748603448487,-420.0,0.00021917,2]
[363154386,1748603448497,-543.82,0.00021917,2]
[363154388,1748603448507,-1748.44,0.00021917,2]
[363154390,1748603448518,-500.0,0.00021917,2]
[363154392,1748603448528,-500.0,0.00021917,2]
[363154394,1748603448538,-420.0,0.00021917,2]
[363154396,1748603448549,-420.0,0.00021917,2]
[363154398,1748603448559,-620.29,0.00021917,2]
[363154400,1748603448569,-1165.15,0.00021917,2]
[363154402,1748603448579,-461.47,0.00021917,2]
[363154404,1748603448591,-420.0,0.00021917,2]
[363154406,1748603448602,-621.0,0.00021917,2]
[363154408,1748603448613,-420.0,0.00021917,2]
[363154411,1748603448623,-420.0,0.00021917,2]
[363154413,1748603448633,-320.205292,0.00021917,2]
[363154415,1748603448643,-420.0,0.00021917,2]
[363154417,1748603448653,-420.0,0.00021917,2]
[363154419,1748603448663,-320.205292,0.00021917,2]
[363154421,1748603448673,-1070.58,0.00021917,2]
[363154423,1748603448683,-320.205292,0.00021917,2]
[363154425,1748603448693,-320.205292,0.00021917,2]
[363154427,1748603448702,-420.0,0.00021917,2]
[363154429,1748603448712,-320.205292,0.00021917,2]
[363154431,1748603448721,-320.205292,0.00021917,2]
[363154433,1748603448731,-516.92,0.00021917,2]
[363154435,1748603448741,-420.0,0.00021917,2]
[363154437,1748603448750,-320.205292,0.00021917,2]
[363154439,1748603448760,-152.493386,0.00021917,2]
[363154441,1748603448770,-320.205292,0.00021917,2]
[363154443,1748603448780,-476.99,0.00021917,2]
[363154445,1748603448790,-420.0,0.00021917,2]
[363154447,1748603448800,-160.0,0.00021917,2]
[363154449,1748603448811,-503.87081854,0.00021917,2]
[363154452,1748603448821,-1051.91,0.00021917,2]
[363154454,1748603448834,-420.0,0.00021917,2]
[363154455,1748603448845,-420.0,0.00021917,2]
[363154458,1748603448858,-420.0,0.00021917,2]
[363154460,1748603448868,-151.0,0.00021917,2]
[363154462,1748603448879,-151.0,0.00021917,2]
[363154464,1748603448890,-151.0,0.00021917,2]
[363154466,1748603448900,-838.05,0.00021917,2]
[363154468,1748603448911,-825.95,0.00021917,2]
[363154470,1748603448921,-420.0,0.00021917,2]
[363154472,1748603448931,-459.25,0.00021917,2]
[363154474,1748603448941,-420.0,0.00021917,2]
[363154476,1748603448950,-993.78,0.00021917,2]
[363154478,1748603448961,-737.77,0.00021917,2]
[363154480,1748603448972,-151.0,0.00021917,2]
[363154482,1748603448982,-420.0,0.00021917,2]
[363154484,1748603448992,-500.0,0.00021917,2]
[363154486,1748603449003,-151.0,0.00021917,2]
[363154488,1748603449014,-420.0,0.00021917,2]
[363154490,1748603449024,-151.0,0.00021917,2]
[363154492,1748603449034,-367.54817576,0.00021917,2]
[363154494,1748603449044,-420.0,0.00021917,2]
[363154496,1748603449054,-166.44,0.00021917,2]
[363154499,1748603449065,-600.1,0.00021917,2]
[363154501,1748603449076,-151.0,0.00021917,2]
[363154502,1748603449085,-783.73,0.00021917,2]
[363154505,1748603449097,-420.0,0.00021917,2]
[363154507,1748603449107,-151.0,0.00021917,2]
[363154509,1748603449117,-151.0,0.00021917,2]
[363154511,1748603449127,-151.0,0.00021917,2]
[363154513,1748603449137,-420.0,0.00021917,2]
[363154515,1748603449147,-151.0,0.00021917,2]
[363154517,1748603449158,-151.0,0.00021917,2]
[363154519,1748603449173,-420.0,0.00021917,2]
[363154521,1748603449183,-420.0,0.00021917,2]
[363154523,1748603449194,-420.0,0.00021917,2]
[363154525,1748603449204,-816.65,0.00021917,2]
[363154527,1748603449214,-420.0,0.00021917,2]
[363154529,1748603449225,-493.62414178,0.00021917,2]
[363154531,1748603449236,-420.0,0.00021917,2]
[363154533,1748603449247,-420.0,0.00021917,2]
[363154535,1748603449258,-420.0,0.00021917,2]
[363154537,1748603449268,-420.0,0.00021917,2]
[363154540,1748603449278,-422.53767901,0.00021917,2]
[363154542,1748603449288,-160.0,0.00021917,2]
[363154544,1748603449297,-679.62,0.00021917,2]
[363154545,1748603449307,-420.0,0.00021917,2]
[363154548,1748603449317,-420.0,0.00021917,2]
[363154550,1748603449327,-576.4,0.00021917,2]
[363154552,1748603449337,-420.0,0.00021917,2]
[363154554,1748603449349,-500.0,0.00021917,2]
[363154556,1748603449358,-420.0,0.00021917,2]
[363154558,1748603449369,-420.0,0.00021917,2]
[363154560,1748603449380,-426.54,0.00021917,2]
[363154562,1748603449391,-500.0,0.00021917,2]
[363154564,1748603449401,-160.0,0.00021917,2]
[363154566,1748603449411,-499.2,0.00021917,2]
[363154568,1748603449422,-206.55841864,0.00021917,2]
[363154570,1748603449432,-531.58,0.00021917,2]
[363154573,1748603449445,-420.0,0.00021917,2]
[363154575,1748603449455,-669.54,0.00021917,2]
[363154577,1748603449465,-420.0,0.00021917,2]
[363154579,1748603449476,-420.0,0.00021917,2]
[363154581,1748603449487,-667.5,0.00021917,2]
[363154583,1748603449497,-420.0,0.00021917,2]
[363154585,1748603449507,-420.0,0.00021917,2]
[363154587,1748603449517,-420.0,0.00021917,2]
[363154589,1748603449528,-567.56,0.00021917,2]
[363154591,1748603449539,-420.0,0.00021917,2]
[363154593,1748603449550,-157.47666776,0.00021917,2]
[363154595,1748603449559,-420.0,0.00021917,2]
[363154597,1748603449570,-420.0,0.00021917,2]
[363154599,1748603449579,-500.0,0.00021917,2]
[363154601,1748603449589,-420.0,0.00021917,2]
[363154603,1748603449600,-420.26,0.00021917,2]
[363154605,1748603449610,-420.0,0.00021917,2]
[363154608,1748603449620,-1211.78,0.00021917,2]
[363154610,1748603449630,-420.0,0.00021917,2]
[363154612,1748603449640,-420.0,0.00021917,2]
[363154614,1748603449650,-202.37962199,0.00021917,2]
[363154616,1748603449659,-1970.29,0.00021917,2]
[363154618,1748603449668,-523.52,0.00021917,2]
[363154620,1748603449678,-420.0,0.00021917,2]
[363154622,1748603449688,-739.57,0.00021917,2]
[363154624,1748603449697,-500.0,0.00021917,2]
[363154626,1748603449707,-420.0,0.00021917,2]
[363154628,1748603449717,-420.0,0.00021917,2]
[363154630,1748603449727,-420.0,0.00021917,2]
[363154632,1748603449735,-420.0,0.00021917,2]
[363154634,1748603449745,-420.0,0.00021917,2]
[363154636,1748603449755,-420.0,0.00021917,2]
[363154638,1748603449764,-449.28748632,0.00021917,2]
[363154640,1748603449774,-1089.08,0.00021917,2]
[363154642,1748603449784,-420.0,0.00021917,2]
[363154644,1748603449793,-2173.48,0.00021917,2]
[363154646,1748603449804,-500.0,0.00021917,2]
[363154648,1748603449813,-420.0,0.00021917,2]
[363154650,1748603449824,-420.0,0.00021917,2]
[363154653,1748603449834,-420.0,0.00021917,2]
[363154655,1748603449846,-427.19,0.00021917,2]
[363154657,1748603449856,-420.0,0.00021917,2]
[363154659,1748603449866,-420.0,0.00021917,2]
[363154661,1748603449877,-709.59,0.00021917,2]
[363154663,1748603449888,-530.53,0.00021917,2]
[363154665,1748603449899,-420.0,0.00021917,2]
[363154667,1748603449909,-516.0,0.00021917,2]
[363154696,1748603450157,-420.0,0.00021917,2]
[363154698,1748603450168,-500.0,0.00021917,2]
[363154700,1748603450178,-420.0,0.00021917,2]
[363154702,1748603450187,-420.0,0.00021917,2]
[363154704,1748603450196,-420.0,0.00021917,2]
[363154706,1748603450204,-420.0,0.00021917,2]
[363154708,1748603450213,-541.62,0.00021917,2]
[363154710,1748603450221,-420.0,0.00021917,2]
[363154711,1748603450230,-420.0,0.00021917,2]
[363154712,1748603450238,-420.0,0.00021917,2]
[363154713,1748603450247,-271.72721888,0.00021917,2]
[363154714,1748603450256,-580.04,0.00021917,2]
[363154715,1748603450264,-420.0,0.00021917,2]
[363154716,1748603450272,-1511.1,0.00021917,2]
[363154717,1748603450280,-1473.72,0.00021917,2]
[363154718,1748603450289,-420.0,0.00021917,2]
[363154719,1748603450298,-420.0,0.00021917,2]
[363154720,1748603450307,-420.0,0.00021917,2]
[363154721,1748603450317,-420.0,0.00021917,2]
[363154723,1748603450326,-420.0,0.00021917,2]
[363154724,1748603450335,-420.0,0.00021917,2]
[363154726,1748603450346,-1168.01,0.00021917,2]
[363154728,1748603450356,-554.87,0.00021917,2]
[363154731,1748603450365,-194.11227228,0.00021917,2]
[363154732,1748603450375,-502.03639381,0.00021917,2]
[363154734,1748603450384,-420.0,0.00021917,2]
[363154736,1748603450394,-420.0,0.00021917,2]
[363154738,1748603450403,-420.0,0.00021917,2]
[363154740,1748603450412,-420.0,0.00021917,2]
[363154742,1748603450421,-420.0,0.00021917,2]
[363154744,1748603450431,-160.0,0.00021917,2]
[363154746,1748603450446,-566.44,0.00021917,2]
[363154748,1748603450455,-420.0,0.00021917,2]
[363154750,1748603450465,-420.0,0.00021917,2]
[363154752,1748603450474,-1000.9,0.00021917,2]
[363154754,1748603450483,-1677.39,0.00021917,2]
[363154756,1748603450494,-420.0,0.00021917,2]
[363154758,1748603450504,-1228.12,0.00021917,2]
[363154761,1748603450514,-1163.07,0.00021917,2]
[363154763,1748603450525,-1236.91,0.00021917,2]
[363154765,1748603450534,-945.861267,0.00021917,2]
[363154767,1748603450544,-945.861267,0.00021917,2]
[363154769,1748603450554,-420.0,0.00021917,2]
[363154771,1748603450563,-766.15,0.00021917,2]
[363154773,1748603450573,-945.861267,0.00021917,2]
[363154775,1748603450583,-945.861267,0.00021917,2]
[363154777,1748603450595,-420.0,0.00021917,2]
[363154779,1748603450604,-945.861267,0.00021917,2]
[363154781,1748603450614,-945.861267,0.00021917,2]
[363154783,1748603450623,-666.65,0.00021917,2]
[363154785,1748603450633,-945.861267,0.00021917,2]
[363154787,1748603450642,-457.41666003,0.00021917,2]
[363154789,1748603450651,-945.861267,0.00021917,2]
[363154791,1748603450661,-420.0,0.00021917,2]
[363154793,1748603450671,-420.0,0.00021917,2]
[363154795,1748603450681,-3293.54620311,0.00021917,2]
[363154797,1748603450691,-1012.0,0.00021917,2]
[363154799,1748603450701,-420.0,0.00021917,2]
[363154801,1748603450710,-487.02,0.00021917,2]
[363154803,1748603450720,-848.39,0.00021917,2]
[363154805,1748603450729,-420.0,0.00021917,2]
[363154807,1748603450738,-420.0,0.00021917,2]
[363154809,1748603450748,-420.0,0.00021917,2]
[363154811,1748603450757,-420.0,0.00021917,2]
[363154813,1748603450766,-1843.72,0.00021917,2]
[363154815,1748603450776,-431.71,0.00021917,2]
[363154817,1748603450786,-1438.95,0.00021917,2]
[363154819,1748603450795,-478.14,0.00021917,2]
[363154821,1748603450804,-500.0,0.00021917,2]
[363154823,1748603450814,-1062.3,0.00021917,2]
[363154825,1748603450823,-1905.82,0.00021917,2]
[363154827,1748603450832,-217.565645,0.00021917,2]
[363154829,1748603450841,-217.565645,0.00021917,2]
[363154831,1748603450851,-217.565645,0.00021917,2]
[363154833,1748603450861,-420.0,0.00021917,2]
[363154835,1748603450871,-217.565645,0.00021917,2]
[363154837,1748603450880,-627.67,0.00021917,2]
[363154839,1748603450890,-420.0,0.00021917,2]
[363154841,1748603450900,-465.71,0.00021917,2]
[363154843,1748603450910,-420.0,0.00021917,2]
[363154845,1748603450920,-163.70265355,0.00021917,2]
[363154847,1748603450930,-420.0,0.00021917,2]
[363154849,1748603450940,-217.565645,0.00021917,2]
[363154851,1748603450949,-1116.57,0.00021917,2]
[363154853,1748603450959,-217.565645,0.00021917,2]
[363154855,1748603450970,-217.565645,0.00021917,2]
[363154857,1748603450980,-151.0,0.00021917,2]
[363154859,1748603450990,-217.565645,0.00021917,2]
[363154861,1748603451000,-151.0,0.00021917,2]
[363154863,1748603451010,-420.0,0.00021917,2]
[363154865,1748603451019,-1812.72,0.00021917,2]
[363154867,1748603451029,-531.86,0.00021917,2]
[363154869,1748603451038,-533.86,0.00021917,2]
[363154871,1748603451048,-982.63,0.00021917,2]
[363154873,1748603451058,-420.0,0.00021917,2]
[363154875,1748603451068,-420.0,0.00021917,2]
[363154877,1748603451078,-843.0,0.00021917,2]
[363154879,1748603451087,-151.0,0.00021917,2]
[363154882,1748603451099,-424.2585971,0.00021917,2]
[363154884,1748603451108,-151.0,0.00021917,2]
[363154886,1748603451118,-151.0,0.00021917,2]
[363154888,1748603451127,-154.121012,0.00021917,2]
[363154890,1748603451135,-420.0,0.00021917,2]
[363154892,1748603451144,-661.87,0.00021917,2]
[363154894,1748603451154,-165.686068,0.00021917,2]
[363154896,1748603451163,-165.686068,0.00021917,2]
[363154898,1748603451172,-420.0,0.00021917,2]
[363154900,1748603451181,-165.686068,0.00021917,2]
[363154902,1748603451190,-165.686068,0.00021917,2]
[363154904,1748603451199,-160.0,0.00021917,2]
[363154906,1748603451207,-165.686068,0.00021917,2]
[363154908,1748603451216,-165.686068,0.00021917,2]
[363154910,1748603451224,-165.686068,0.00021917,2]
[363154912,1748603451233,-165.686068,0.00021917,2]
[363154914,1748603451242,-672.03,0.00021917,2]
[363154916,1748603451252,-571.32,0.00021917,2]
[363154918,1748603451262,-420.0,0.00021917,2]
[363154920,1748603451271,-420.0,0.00021917,2]
[363154922,1748603451281,-420.0,0.00021917,2]
[363154924,1748603451291,-160.0,0.00021917,2]
[363154926,1748603451300,-438.12,0.00021917,2]
[363154928,1748603451310,-1452.33,0.00021917,2]
[363154930,1748603451319,-420.0,0.00021917,2]
[363154932,1748603451335,-151.0,0.00021917,2]
[363154934,1748603451349,-151.0,0.00021917,2]
[363154936,1748603451362,-151.0,0.00021917,2]
[363154938,1748603451378,-199.0,0.00021917,2]
[363154940,1748603451388,-634.34,0.00021917,2]
[363154943,1748603451400,-420.0,0.00021917,2]
[363154945,1748603451410,-1084.5,0.00021917,2]
[363154946,1748603451419,-500.0,0.00021917,2]
[363154948,1748603451429,-420.0,0.00021917,2]
[363154950,1748603451440,-500.0,0.00021917,2]
[363154953,1748603451452,-420.0,0.00021917,2]
[363154955,1748603451462,-420.0,0.00021917,2]
[363154957,1748603451471,-693.3,0.00021917,2]
[363154959,1748603451480,-420.0,0.00021917,2]
[363154961,1748603451490,-500.0,0.00021917,2]
[363154963,1748603451499,-420.0,0.00021917,2]
[363154965,1748603451508,-420.0,0.00021917,2]
[363154967,1748603451516,-533.08,0.00021917,2]
[363154969,1748603451527,-420.0,0.00021917,2]
[363154971,1748603451537,-741.42,0.00021917,2]
[363154973,1748603451546,-523.64,0.00021917,2]
[363154975,1748603451556,-420.0,0.00021917,2]
[363154977,1748603451565,-1364.86,0.00021917,2]
[363154979,1748603451574,-420.0,0.00021917,2]
[363154981,1748603451583,-420.0,0.00021917,2]
[363154983,1748603451593,-845.77,0.00021917,2]
[363154985,1748603451602,-1306.89,0.00021917,2]
[363154987,1748603451612,-420.0,0.00021917,2]
[363154989,1748603451622,-581.4,0.00021917,2]
[363154991,1748603451631,-630.41,0.00021917,2]
[363154993,1748603451641,-420.0,0.00021917,2]
[363154995,1748603451650,-864.61,0.00021917,2]
[363154997,1748603451660,-1419.5,0.00021917,2]
[363154999,1748603451669,-420.0,0.00021917,2]
[363155001,1748603451679,-160.0,0.00021917,2]
[363155003,1748603451688,-151.0,0.00021917,2]
[363155005,1748603451698,-151.0,0.00021917,2]
[363155007,1748603451707,-151.0,0.00021917,2]
[363155009,1748603451718,-151.0,0.00021917,2]
[363155011,1748603451728,-865.14,0.00021917,2]
[363155013,1748603451738,-867.81,0.00021917,2]
[363155015,1748603451749,-539.63260274,0.00021917,2]
[363155017,1748603451758,-420.0,0.00021917,2]
[363155019,1748603451768,-134259.76,0.00021917,2]
[363155021,1748603451777,-420.0,0.00021917,2]
[363155023,1748603451787,-420.0,0.00021917,2]
[363155025,1748603451797,-484.47,0.00021917,2]
[363155027,1748603451807,-420.0,0.00021917,2]
[363155029,1748603451816,-420.0,0.00021917,2]
[363155031,1748603451826,-943.17,0.00021917,2]
[363155033,1748603451836,-2752.88,0.00021917,2]
[363155035,1748603451848,-426.85,0.00021917,2]
[363155037,1748603451857,-3323.01,0.00021917,2]
[363155039,1748603451867,-261.91502367,0.00021917,2]
[363155041,1748603451876,-736.18,0.00021917,2]
[363155043,1748603451886,-649.53,0.00021917,2]
[363155045,1748603451897,-153.32218622,0.00021917,2]
[363155047,1748603451906,-34515.96,0.00021917,2]
[363155049,1748603451916,-1000.0,0.00021917,2]
[363155052,1748603451926,-529.91,0.00021917,2]
[363155054,1748603451936,-4257.016718,0.00021917,2]
[363155056,1748603451946,-470.65412982,0.00021917,2]
[363155058,1748603451956,-4257.016718,0.00021917,2]
[363155060,1748603451966,-631.54,0.00021917,2]
[363155062,1748603451975,-4257.016718,0.00021917,2]
[363155064,1748603451984,-420.0,0.00021917,2]
[363155066,1748603451993,-4257.016718,0.00021917,2]
[363155067,1748603452003,-814.55,0.00021917,2]
[363155070,1748603452013,-420.0,0.00021917,2]
[363155071,1748603452023,-4257.016718,0.00021917,2]
[363155073,1748603452032,-4257.016718,0.00021917,2]
[363155075,1748603452041,-196.06,0.00021917,2]
[363155077,1748603452051,-4257.016718,0.00021917,2]
[363155079,1748603452061,-4257.016718,0.00021917,2]
[363155081,1748603452070,-1043.76,0.00021917,2]
[363155083,1748603452081,-420.0,0.00021917,2]
[363155085,1748603452092,-151.0,0.00021917,2]